bitfinex/quotes_ETHUSD_20220118
["timestamp","ask_amount","ask_price","bid_price","bid_amount"]
[1642482149440,1.24965169,3173.8,3173.7,0.00682123]
[1642482150188,1.24965169,3173.8,3173.7,0.00600322]
[1642482160393,1.24965169,3173.8,3173.6,1.48198768]
[1642482162839,1.24965169,3173.8,3173.6,0.25600322]
[1642482163143,1.24965169,3173.8,3173.1,0.126]
[1642482163339,1.24965169,3173.8,3173.0,4.403]
[1642482163539,1.48765338,3173.3,3173.2,0.00284212]
[1642482163740,2.99038657,3173.3,3173.2,0.00284212]
[1642482164140,2.99038657,3173.3,3173.1,0.11917907]
[1642482164341,2.99038657,3173.3,3173.0,0.126]
[1642482164545,2.99038657,3173.3,3173.0,0.3]
[1642482164787,2.99038657,3173.3,3172.9,0.126]
[1642482165187,2.99038657,3173.3,3173.0,0.00113685]
[1642482165790,2.99038657,3173.3,3173.0,0.30113685]
[1642482171240,2.99038657,3173.3,3173.0,0.30031884]
[1642482173590,2.99038657,3173.3,3173.0,0.17245556]
[1642482173988,2.99038657,3173.3,3173.0,0.00113685]
[1642482175592,2.99038657,3173.3,3172.7,1.82611089]
[1642482175937,0.00113685,3173.2,3172.8,0.12713684]
[1642482177144,0.00113685,3173.2,3172.8,0.00113684]
[1642482177544,2.69451335,3173.2,3172.6,0.00227369]
[1642482177746,1.2906865,3172.8,3172.6,0.00227369]
[1642482179550,0.00113685,3173.2,3172.6,0.00227369]
[1642482179816,0.00113685,3173.2,3172.6,3.18279049]
[1642482180015,0.00113685,3173.2,3172.6,3.48279049]
[1642482180215,0.00113685,3173.2,3172.7,0.00170527]
[1642482180414,0.00113685,3173.2,3172.7,1.00170527]
[1642482180616,1.28921772,3173.2,3172.7,1.30170527]
[1642482181215,1.28921772,3173.2,3172.7,4.48222207]
[1642482181417,1.28921772,3173.2,3172.7,3.48222207]
[1642482181615,1.28921772,3173.2,3172.8,1.0]
[1642482183019,1.28921772,3173.2,3172.7,3.48222207]
[1642482183222,1.28921772,3173.2,3172.7,3.18222207]
[1642482183446,0.126,3173.1,3172.7,3.18222207]
[1642482184448,2.81955386,3173.1,3172.7,0.00170527]
[1642482184851,1.43423713,3172.7,3172.4,0.00341054]
[1642482185150,1.43423713,3172.7,3172.3,0.49575073]
[1642482185348,0.00113685,3172.6,3172.3,0.49575073]
[1642482185550,0.00113685,3172.6,3172.3,0.20200324]
[1642482188594,0.00113685,3172.6,3172.3,4.1023978]
[1642482188797,0.00113685,3172.6,3172.4,19.003]
[1642482188995,0.00113685,3172.6,3172.5,3.64909598]
[1642482189298,0.00113685,3172.6,3172.5,23.65209598]
[1642482189696,0.00113685,3172.6,3172.5,23.60209598]
[1642482189898,0.00113685,3172.6,3172.5,23.84033138]
[1642482190700,0.00113685,3172.6,3172.5,21.78022824]
[1642482190955,0.00113685,3172.6,3172.5,0.98414934]
[1642482191148,0.00113685,3172.6,3172.5,0.94900324]
[1642482191746,0.00033685,3172.6,3172.5,0.94900324]
[1642482192146,0.00033685,3172.6,3172.5,0.94818523]
[1642482192546,0.00033685,3172.6,3172.5,0.74618199]
[1642482194794,0.00033685,3172.6,3172.5,0.61831871]
[1642482205398,0.00033685,3172.6,3172.5,3.79883551]
[1642482205598,0.00033685,3172.6,3172.5,4.79883551]
[1642482206246,0.00033685,3172.6,3172.5,4.78917246]
[1642482207644,1.43904171,3172.9,3172.6,0.00046315]
[1642482208043,0.00113685,3172.8,3172.6,1.00046315]
[1642482213102,0.00113685,3172.8,3172.6,0.00046315]
[1642482213301,0.00113685,3172.8,3172.7,1.22633224]
[1642482215148,0.00113685,3172.8,3172.5,0.6083008]
[1642482215747,0.00113685,3172.8,3172.5,0.48043752]
[1642482216047,0.00113685,3172.8,3172.5,0.447]
[1642482217196,0.00113685,3172.8,3172.5,0.747]
[1642482219095,1.26154401,3172.6,3172.5,0.747]
[1642482220398,1.26154401,3172.6,3172.5,0.697]
[1642482220596,0.00113685,3172.8,3172.5,0.697]
[1642482221846,1.40513889,3172.6,3172.5,0.697]
[1642482226494,1.40513889,3172.6,3172.5,0.597]
[1642482227097,1.40513889,3172.6,3172.5,0.58733695]
[1642482227298,1.40513889,3172.6,3172.5,0.447]
[1642482229142,1.40513889,3172.6,3172.5,0.747]
[1642482233599,0.00113685,3172.8,3172.5,0.747]
[1642482234296,0.00113685,3172.8,3172.5,0.74618199]
[1642482234896,1.54867844,3172.6,3172.5,0.74618199]
[1642482236846,1.54867844,3172.6,3172.5,0.61831871]
[1642482240607,1.43904171,3172.9,3172.5,0.61831871]
[1642482241610,2.69368543,3172.8,3172.5,0.61831871]
[1642482241810,1.11527882,3172.7,3172.5,0.61831871]
[1642482243011,2.69368543,3172.6,3172.5,0.61831871]
[1642482243647,1.11527882,3172.7,3172.5,0.61831871]
[1642482246052,1.11527882,3172.7,3172.0,0.126]
[1642482246253,0.126,3172.6,3171.9,0.68560424]
[1642482246456,0.126,3172.6,3172.1,0.00284212]
[1642482248302,0.126,3172.6,3171.9,3.72248654]
[1642482248501,0.0022737,3172.5,3171.9,3.72248654]
[1642482248702,0.0022737,3172.5,3171.9,3.84848654]
[1642482248902,0.00170527,3172.4,3172.0,0.20251514]
[1642482249301,0.00113685,3172.3,3172.0,0.20251514]
[1642482250201,0.00113685,3172.3,3171.9,0.77678007]
[1642482251349,0.00113685,3172.3,3171.9,3.72248654]
[1642482255800,0.00113685,3172.3,3171.9,0.77678007]
[1642482257902,0.00113685,3172.3,3171.9,0.64891679]
[1642482258206,0.00113685,3172.3,3171.7,0.126]
[1642482258474,0.00113685,3172.3,3171.4,3.3065168]
[1642482258475,0.126,3172.2,3171.4,3.3065168]
[1642482258671,0.126,3172.2,3171.8,0.00170527]
[1642482258871,0.126,3172.2,3171.5,0.00341054]
[1642482260073,0.126,3172.2,3171.3,0.77938899]
[1642482260074,0.126,3172.2,3171.4,0.00397896]
[1642482261480,2.69428231,3172.1,3171.4,0.00397896]
[1642482261679,0.126,3172.0,3171.4,0.00397896]
[1642482262311,1.38004087,3171.9,3171.4,0.00397896]
[1642482262619,0.126,3171.8,3171.4,0.00397896]
[1642482263316,1.40099048,3171.7,3171.4,0.00397896]
[1642482264616,2.69428231,3171.6,3171.4,0.00397896]
[1642482264813,2.69428231,3171.6,3171.0,0.00625266]
[1642482266751,3.39838231,3171.6,3171.0,0.00625266]
[1642482268159,3.52438231,3171.6,3171.0,0.00625266]
[1642482268560,3.82438231,3171.6,3171.0,0.00625266]
[1642482268760,4.07018231,3171.6,3171.0,0.00625266]
[1642482269161,2.69428231,3171.5,3171.0,0.00625266]
[1642482269361,2.69428231,3171.5,3170.8,3.1805168]
[1642482269562,0.1282737,3171.4,3170.8,3.1805168]
[1642482270004,0.00170527,3171.3,3170.8,3.1805168]
[1642482270404,0.00113685,3171.2,3170.5,4.4895168]
[1642482270606,1.27592936,3170.6,3170.5,4.4895168]
[1642482270804,2.71934745,3170.6,3170.5,3.3065168]
[1642482271005,2.71934745,3170.6,3170.5,3.6065168]
[1642482274978,2.71934745,3170.6,3170.5,0.426]
[1642482275372,2.71934745,3170.6,3170.5,0.126]
[1642482275775,2.71934745,3170.6,3170.4,3.4805168]
[1642482276078,2.84534745,3170.6,3170.4,3.1805168]
[1642482277073,2.84534745,3170.6,3170.4,2.23169688]
[1642482277309,5.7,3170.5,3170.2,0.9964473]
[1642482277514,0.126,3170.4,3170.2,0.9964473]
[1642482277708,0.126,3170.4,3170.3,0.00397896]
[1642482277909,2.71934745,3170.6,3170.3,0.00397896]
[1642482277910,0.126,3170.5,3170.3,0.00397896]
[1642482278808,0.126,3170.5,3170.2,0.87256298]
[1642482286104,3.11257706,3170.5,3170.2,0.87256298]
[1642482286509,5.7,3170.3,3169.3,0.126]
[1642482286711,3.20843336,3170.2,3169.3,0.126]
[1642482286907,3.20843336,3170.2,3169.4,0.00511581]
[1642482287710,1.3612784,3169.5,3169.4,0.00511581]
[1642482287913,2.56729071,3169.5,3169.4,0.00511581]
[1642482289158,3.79139071,3169.5,3169.4,0.00511581]
[1642482289360,3.79139071,3169.5,3169.1,0.00682108]
[1642482290257,3.79139071,3169.5,3169.0,31.89608257]
[1642482290565,0.01213084,3169.1,3167.7,4.96765434]
[1642482290767,0.01213084,3169.1,3167.7,0.1262]
[1642482290768,0.01216539,3168.0,3167.7,0.1262]
[1642482291058,0.01216539,3168.0,3167.0,2.41782121]
[1642482291059,0.01252867,3167.8,3167.0,2.41782121]
[1642482291258,0.01252867,3167.8,3166.2,2.41782121]
[1642482291259,0.447,3167.8,3166.2,2.41782121]
[1642482291461,0.447,3167.8,3167.7,1.50428274]
[1642482291959,1.77685178,3168.4,3167.7,0.00795793]
[1642482292412,1.77685178,3168.4,3167.5,0.00909478]
[1642482292612,1.77685178,3168.4,3167.9,1.12562834]
[1642482292812,0.447,3168.4,3168.1,1.4630365]
[1642482293014,2.93927884,3169.1,3168.1,1.7630365]
[1642482293015,0.447,3168.8,3168.1,1.7630365]
[1642482293216,0.447,3168.8,3168.2,0.00511581]
[1642482293412,1.6146527,3168.4,3168.2,0.00511581]
[1642482294012,1.6146527,3168.4,3167.9,1.42562834]
[1642482294013,1.6146527,3168.4,3168.0,0.00625266]
[1642482295413,0.1262,3168.5,3168.0,0.00625266]
[1642482295824,0.01259038,3168.1,3166.2,0.49990743]
[1642482296064,0.5732,3168.0,3166.2,0.49990743]
[1642482296261,2.9293582,3167.9,3166.3,0.0096632]
[1642482296462,0.1262,3167.8,3166.3,0.0096632]
[1642482296662,1.39844621,3167.5,3167.0,1.33155479]
[1642482296865,0.1262,3167.8,3167.1,1.35938241]
[1642482297066,3.7619,3168.2,3167.1,1.36449822]
[1642482297067,0.1262,3168.0,3167.1,1.36449822]
[1642482297266,0.1262,3168.1,3167.2,0.00454739]
[1642482297667,0.1262,3168.1,3167.1,0.00511581]
[1642482297867,3.3149,3168.2,3167.9,1.49979765]
[1642482298066,4.7321,3168.3,3167.9,1.79979765]
[1642482298067,3.1817837,3168.1,3167.9,1.79979765]
[1642482299567,0.00113685,3168.2,3167.9,1.79979765]
[1642482299838,0.00113685,3168.2,3167.9,1.37193437]
[1642482300038,0.1262,3168.1,3167.1,0.00511581]
[1642482300437,0.1262,3168.1,3166.8,0.00682108]
[1642482300636,0.1262,3168.1,3166.8,0.30682108]
[1642482300939,0.1262,3168.1,3167.4,1.23676205]
[1642482301139,0.1262,3168.1,3167.5,1.52707444]
[1642482301336,0.1262,3168.1,3167.5,1.52991656]
[1642482301540,0.1262,3168.1,3167.6,0.00227369]
[1642482302137,0.1262,3168.1,3168.0,1.34809626]
[1642482302540,0.00113685,3168.2,3168.0,1.64809626]
[1642482306975,0.00113685,3168.2,3167.6,3.94597369]
[1642482306976,0.00113685,3168.2,3167.6,0.00227369]
[1642482307234,0.1262,3168.1,3167.6,0.00227369]
[1642482307421,0.1262,3168.1,3166.9,0.00625266]
[1642482308022,0.1262,3168.1,3166.4,0.98647985]
[1642482308023,1.32883233,3167.8,3167.3,1.53404409]
[1642482308223,0.00113685,3168.2,3167.3,1.53404409]
[1642482308224,0.1262,3167.7,3167.3,1.53404409]
[1642482308425,0.1262,3168.1,3167.4,0.00341054]
[1642482309222,0.1262,3168.1,3168.0,1.42478405]
[1642482309424,2.9392531,3168.2,3167.4,0.00341054]
[1642482309425,3.0654531,3168.2,3167.4,0.00341054]
[1642482309627,2.69838045,3168.0,3167.4,0.00341054]
[1642482309825,2.69838045,3168.0,3166.8,0.00682108]
[1642482310025,2.91918683,3167.9,3166.8,0.00682108]
[1642482310225,2.69838045,3168.0,3166.8,0.00682108]
[1642482310426,2.82458045,3168.0,3167.8,1.51706717]
[1642482310826,0.00113685,3168.2,3167.8,3.02761829]
[1642482310827,2.69838045,3168.1,3167.8,3.02761829]
[1642482311665,2.69838045,3168.1,3167.8,3.01795524]
[1642482312067,2.69838045,3168.1,3167.8,1.80740412]
[1642482312870,2.6995173,3168.2,3167.8,1.80740412]
[1642482313671,4.31480004,3168.2,3167.8,1.80740412]
[1642482314719,3.8801113,3168.2,3167.8,1.80740412]
[1642482314912,6.85948835,3168.2,3167.8,0.29033695]
[1642482315114,0.0762,3168.1,3167.8,0.29033695]
[1642482315413,2.77458045,3168.1,3167.1,3.9711]
[1642482315614,3.03601481,3168.0,3167.1,3.9711]
[1642482315813,0.1262,3167.9,3167.2,0.00454739]
[1642482316718,0.1262,3167.9,3167.4,1.44958387]
[1642482317116,2.69838045,3167.8,3167.5,0.00284212]
[1642482317519,2.69838045,3167.8,3167.6,1.52238165]
[1642482317920,2.69838045,3167.8,3167.7,0.00170527]
[1642482318565,2.82458045,3167.8,3167.7,0.30170527]
[1642482318765,2.69838045,3167.8,3167.7,0.3]
[1642482318965,2.69838045,3167.8,3167.7,0.30170527]
[1642482319166,2.69838045,3167.8,3167.7,0.00170527]
[1642482319571,2.69838045,3167.8,3167.5,0.00284212]
[1642482319967,2.69838045,3167.9,3167.5,0.00284212]
[1642482320768,2.69838045,3167.7,3167.5,0.00284212]
[1642482320968,2.69838045,3167.7,3167.4,1.62456271]
[1642482321768,2.69838045,3167.9,3167.4,1.62456271]
[1642482322233,0.00170527,3167.8,3167.4,1.62456271]
[1642482322724,0.00113685,3167.7,3167.4,1.62456271]
[1642482323125,0.00170527,3167.8,3167.4,1.62456271]
[1642482323527,0.00113685,3167.7,3167.4,1.62456271]
[1642482324326,2.6995173,3167.7,3167.4,1.62456271]
[1642482329382,2.6995173,3167.7,3167.4,1.44958387]
[1642482329584,3.14890117,3167.6,3167.4,1.44958387]
[1642482329819,0.1262,3167.6,3167.4,1.44958387]
[1642482330420,0.1262,3167.6,3167.4,3.05291112]
[1642482330824,2.69838045,3167.5,3167.4,1.74958387]
[1642482331928,2.42292411,3167.5,3167.4,1.74958387]
[1642482332528,2.42292411,3167.5,3167.4,1.73992082]
[1642482332726,5.12130456,3167.5,3167.4,1.73992082]
[1642482337326,2.69838045,3167.5,3167.4,1.73992082]
[1642482338022,0.12733685,3167.7,3167.4,1.73992082]
[1642482338023,2.69838045,3167.6,3167.4,1.73992082]
[1642482338723,2.78452247,3167.6,3167.4,1.73992082]
[1642482339524,2.69838045,3167.5,3167.4,1.73992082]
[1642482342066,2.69838045,3167.5,3167.4,1.61205754]
[1642482344921,2.69838045,3167.5,3167.4,1.44958387]
[1642482345127,2.82458045,3167.5,3167.4,1.44958387]
[1642482346021,2.69838045,3167.5,3167.4,1.44958387]
[1642482346423,2.69838045,3167.5,3167.4,1.74958387]
[1642482347224,21.12838045,3167.5,3167.4,1.44958387]
[1642482347424,21.25458045,3167.5,3167.4,1.44958387]
[1642482347628,2.82458045,3167.5,3167.4,1.74958387]
[1642482348326,6.87162508,3167.5,3167.4,1.74958387]
[1642482348566,6.74542508,3167.5,3167.4,1.74958387]
[1642482349169,0.08614202,3167.6,3167.4,1.74958387]
[1642482349972,2.69838045,3167.5,3167.4,1.74958387]
[1642482351077,2.69838045,3167.5,3167.4,1.44958387]
[1642482351874,2.69838045,3167.6,3167.4,1.44958387]
[1642482352074,2.82458045,3167.6,3167.4,1.44958387]
[1642482352323,2.82458045,3167.6,3166.7,3.8577]
[1642482352725,2.82458045,3167.6,3166.8,0.00397896]
[1642482352726,2.87967302,3167.5,3166.8,0.00397896]
[1642482353021,2.82458045,3167.6,3166.8,0.00397896]
[1642482353321,2.82458045,3167.6,3166.8,1.30538573]
[1642482353521,2.69838045,3167.4,3167.2,1.38148924]
[1642482353723,2.69838045,3167.4,3167.2,1.37182619]
[1642482353921,2.69838045,3167.4,3167.3,0.00113684]
[1642482354322,2.69838045,3167.5,3167.3,0.00113684]
[1642482355725,3.26023421,3167.4,3167.3,0.00113684]
[1642482356372,3.13403421,3167.4,3167.3,0.00113684]
[1642482356572,3.13403421,3167.4,3166.6,0.00511581]
[1642482356772,3.13403421,3167.4,3167.2,1.20757056]
[1642482357172,3.13403421,3167.4,3167.3,0.00113684]
[1642482357374,5.83241466,3167.4,3167.3,0.00113684]
[1642482358174,2.69838045,3167.4,3167.3,0.00113684]
[1642482358574,2.9571236,3167.4,3167.3,0.00113684]
[1642482358974,0.25874315,3167.4,3167.3,0.00113684]
[1642482359175,6.22041547,3167.4,3167.3,0.00113684]
[1642482359375,3.27041547,3167.4,3167.3,0.00113684]
[1642482359817,5.96879592,3167.4,3167.3,0.00113684]
[1642482360217,3.0833236,3167.4,3167.3,0.00113684]
[1642482361020,2.9571236,3167.4,3167.3,0.00113684]
[1642482362926,2.9571236,3167.4,3167.2,1.08084412]
[1642482363975,0.25874315,3167.4,3167.2,1.08084412]
[1642482364377,0.1262,3167.3,3167.2,1.08084412]
[1642482364579,0.25874315,3167.4,3167.2,1.08084412]
[1642482364977,0.1262,3167.3,3167.2,1.08084412]
[1642482365378,2.82481657,3167.3,3167.2,1.08084412]
[1642482365781,2.82481657,3167.3,3166.6,1.09622418]
[1642482366178,2.82481657,3167.3,3166.7,0.00341055]
[1642482366878,2.69861657,3167.2,3166.7,0.00341055]
[1642482367078,0.1263,3167.1,3166.7,0.00341055]
[1642482368423,0.12953018,3167.2,3166.7,0.00341055]
[1642482368624,0.1263,3167.1,3166.7,0.00341055]
[1642482368825,0.12953018,3167.2,3166.7,0.00341055]
[1642482369622,0.12953018,3167.2,3166.7,1.00341055]
[1642482370023,0.12953018,3167.2,3166.8,0.00284212]
[1642482371482,4.04751549,3168.3,3168.1,1.13093812]
[1642482371686,4.04751549,3168.3,3168.1,2.26923812]
[1642482372281,4.04751549,3168.3,3168.2,1.21740413]
[1642482372682,4.05319972,3168.3,3168.2,1.21740413]
[1642482373083,2.7035122,3168.3,3168.2,1.21740413]
[1642482373487,2.7035122,3168.3,3168.2,1.23802485]
[1642482374732,2.7035122,3168.3,3168.2,1.2283618]
[1642482378470,2.7035122,3168.3,3168.2,1.21740413]
[1642482380773,2.8297122,3168.3,3168.2,1.21740413]
[1642482381775,2.7035122,3168.3,3168.2,1.21740413]
[1642482383428,2.7035122,3168.3,3168.2,1.23818516]
[1642482384028,2.7035122,3168.3,3168.2,1.11032188]
[1642482384627,2.7035122,3168.3,3168.1,0.3]
[1642482385031,0.00511581,3168.2,3167.2,1.0]
[1642482385332,0.00454738,3168.1,3167.7,0.3]
[1642482385531,0.00454738,3168.1,3167.5,0.747]
[1642482385532,0.00454738,3168.1,3167.5,1.047]
[1642482385731,0.00397896,3168.0,3167.9,1.55369434]
[1642482385965,0.00397896,3168.0,3167.9,1.85369434]
[1642482386265,2.70237535,3168.0,3167.6,1.0]
[1642482386472,2.70237535,3168.0,3167.2,0.447]
[1642482386671,0.12961054,3167.9,3167.1,1.0]
[1642482387070,0.00284211,3167.8,3167.1,1.0]
[1642482387472,0.00227369,3167.7,3167.1,1.0]
[1642482387771,0.00170527,3167.6,3167.3,1.46188519]
[1642482387971,0.00170527,3167.6,3167.1,1.3]
[1642482388172,0.00113684,3167.5,3167.1,1.3]
[1642482388570,0.00227369,3167.7,3167.1,1.3]
[1642482388974,0.00170527,3167.6,3167.1,1.3]
[1642482389472,0.00113684,3167.5,3167.1,1.3]
[1642482389724,0.00113684,3167.5,3167.4,1.55328784]
[1642482389916,0.00227369,3167.7,3167.4,1.55328784]
[1642482390116,0.00113684,3167.5,3167.4,1.55328784]
[1642482390315,0.1262,3167.8,3167.4,1.55328784]
[1642482390316,0.00170527,3167.6,3167.4,1.55328784]
[1642482390519,0.00113684,3167.5,3167.4,1.55328784]
[1642482390721,0.00227369,3167.5,3167.4,1.55328784]
[1642482390917,0.00113684,3167.5,3167.4,1.55328784]
[1642482395669,0.00113684,3167.5,3167.4,1.54362479]
[1642482405120,0.00113684,3167.5,3167.4,1.41576151]
[1642482412328,2.69896481,3167.5,3167.4,1.41576151]
[1642482416871,2.69896481,3167.5,3167.4,1.40609846]
[1642482420926,2.69782797,3167.5,3167.4,1.40609846]
[1642482422830,2.69782797,3167.5,3167.1,0.447]
[1642482424670,2.69782797,3167.5,3167.3,1.30361259]
[1642482425074,2.69782797,3167.5,3167.3,1.60361259]
[1642482425473,2.69782797,3167.5,3167.3,1.30361259]
[1642482426079,2.69782797,3167.5,3167.3,1.17574931]
[1642482426679,2.69782797,3167.5,3167.1,1.747]
[1642482426881,2.69782797,3167.5,3167.1,0.747]
[1642482427080,2.69782797,3167.5,3167.1,1.747]
[1642482427326,2.69782797,3167.5,3167.1,0.747]
[1642482428027,2.69782797,3167.5,3167.3,1.23517941]
[1642482428228,2.69782797,3167.5,3167.4,0.447]
[1642482432577,0.1262,3168.1,3167.5,5.7]
[1642482432779,9.06871585,3168.4,3167.5,5.7]
[1642482432780,9.06871585,3168.4,3167.6,3.464411]
[1642482432975,0.00397896,3168.0,3167.7,5.581]
[1642482433175,0.00397896,3168.0,3167.8,1.447]
[1642482433374,4.04751549,3168.3,3167.8,1.447]
[1642482433375,0.00341054,3167.9,3167.8,1.447]
[1642482433575,0.00341054,3167.9,3167.8,3.43557333]
[1642482434375,4.04751549,3168.3,3168.1,1.25679897]
[1642482434578,9.06871585,3168.4,3168.3,2.45]
[1642482434828,2.42292411,3168.7,3168.4,1.45597941]
[1642482435024,1.56239449,3168.9,3168.8,1.23216757]
[1642482435330,1.56239449,3168.9,3168.8,1.97916757]
[1642482435524,1.56239449,3168.9,3168.8,2.27916757]
[1642482436024,2.42292411,3169.1,3168.8,1.047]
[1642482436223,0.1262,3169.5,3168.8,1.047]
[1642482436424,0.00625265,3169.0,3168.8,1.047]
[1642482436825,0.00568423,3168.9,3168.8,1.047]
[1642482437430,0.1262,3169.6,3168.9,4.8]
[1642482437630,2.37292411,3169.8,3169.5,1.4000195]
[1642482437833,0.00284212,3169.4,3169.1,3.03768298]
[1642482438031,0.00284212,3169.4,3169.2,1.0]
[1642482438228,2.37292411,3169.7,3169.3,2.947]
[1642482438473,2.37292411,3169.7,3169.3,0.447]
[1642482438676,0.00397896,3169.6,3169.3,0.747]
[1642482438874,0.1262,3169.5,3169.3,0.747]
[1642482439073,0.12961054,3169.5,3169.3,0.747]
[1642482439275,1.13533246,3170.0,3169.3,0.747]
[1642482439276,0.00284212,3169.4,3169.3,0.747]
[1642482439473,0.12904212,3169.4,3169.3,0.747]
[1642482439673,0.13188424,3169.4,3169.3,0.747]
[1642482441078,0.13188424,3169.4,3169.3,0.447]
[1642482445030,0.13188424,3169.4,3169.3,0.397]
[1642482445832,3.07432642,3169.4,3169.3,0.397]
[1642482446070,0.13188424,3169.4,3169.3,0.397]
[1642482446970,3.08172475,3169.4,3169.3,0.397]
[1642482447173,0.13188424,3169.4,3169.3,0.26913672]
[1642482448377,0.00568424,3169.4,3169.3,0.26913672]
[1642482452832,2.70236369,3169.4,3169.3,0.26913672]
[1642482453868,2.70236369,3169.4,3168.9,2.547]
[1642482454367,0.00227369,3169.3,3168.9,2.547]
[1642482454771,0.00170527,3169.2,3168.9,2.547]
[1642482455173,0.00113685,3169.1,3168.9,2.547]
[1642482455574,0.00227369,3169.3,3168.9,2.247]
[1642482455977,0.00170527,3169.2,3168.9,2.547]
[1642482456174,1.69838472,3169.3,3168.9,2.547]
[1642482456375,1.69838472,3169.3,3169.0,0.00113685]
[1642482456975,4.49162936,3169.4,3169.0,0.00113685]
[1642482457248,1.56850725,3169.4,3169.0,0.00113685]
[1642482458542,4.43740254,3169.4,3169.0,0.00113685]
[1642482458744,1.56850725,3169.4,3169.0,0.00113685]
[1642482458939,4.46272556,3169.4,3169.0,0.00113685]
[1642482459440,1.69470725,3169.4,3169.0,0.00113685]
[1642482459840,1.69470725,3169.4,3169.0,0.30113685]
[1642482462085,0.1262,3169.4,3169.0,0.30113685]
[1642482466225,1.2509116,3169.5,3169.0,0.30113685]
[1642482466621,0.00113685,3169.4,3169.0,0.30113685]
[1642482468226,0.00113685,3169.4,3169.0,0.17327357]
[1642482468874,0.00113685,3169.4,3169.3,1.2064319]
[1642482469074,0.00113685,3169.4,3169.0,0.17327357]
[1642482470377,0.00113685,3169.4,3169.0,1.17327357]
[1642482470578,0.00113685,3169.4,3169.1,0.447]
[1642482470777,0.7810841,3169.7,3169.2,7.87539684]
[1642482471079,0.00113684,3169.6,3169.4,1.47486972]
[1642482471278,0.00113684,3169.6,3169.5,0.447]
[1642482471481,0.00113684,3169.6,3169.5,1.71174251]
[1642482471678,0.00113684,3169.6,3169.5,2.71174251]
[1642482471878,4.04508792,3169.9,3169.7,1.57699]
[1642482471879,3.25770476,3169.9,3169.7,1.57699]
[1642482472078,3.25770476,3169.9,3169.8,0.5143]
[1642482472330,2.32360025,3170.3,3169.8,9.93854133]
[1642482472531,3.1817837,3170.6,3169.9,6.0]
[1642482472727,1.1482837,3170.6,3170.4,5.581]
[1642482472926,4.96566669,3171.9,3170.8,1.2163963]
[1642482473129,4.96566669,3171.9,3170.5,2.7144985]
[1642482473330,0.00738951,3170.9,3170.6,0.447]
[1642482473526,0.00738951,3170.9,3170.6,0.747]
[1642482473726,0.00682109,3170.8,3170.6,0.66401]
[1642482474130,0.00625266,3170.7,3170.6,0.63281]
[1642482474328,5.39632019,3171.2,3170.7,0.78207734]
[1642482474526,0.00852636,3171.1,3170.8,0.43179]
[1642482474727,0.00852636,3171.1,3170.9,0.447]
[1642482474927,5.52232019,3171.2,3170.1,4.9461]
[1642482474928,0.00170527,3171.0,3170.1,4.9461]
[1642482475127,0.00170527,3171.0,3170.1,5.3931]
[1642482475328,0.00113685,3170.9,3170.2,0.00284211]
[1642482475529,0.00113685,3170.9,3170.3,0.747]
[1642482475729,0.0022737,3171.1,3170.3,1.53541]
[1642482475974,0.0022737,3171.1,3170.4,0.00170527]
[1642482475975,1.18541224,3170.6,3170.4,0.00170527]
[1642482476179,1.18541224,3170.6,3170.5,0.447]
[1642482476383,1.18541224,3170.6,3170.5,0.747]
[1642482476581,1.18541224,3170.6,3170.5,1.04813684]
[1642482476982,1.18541224,3170.6,3170.5,0.44813684]
[1642482477183,1.18541224,3170.6,3170.5,0.42300684]
[1642482477783,3.88077596,3170.6,3170.5,0.42300684]
[1642482478585,3.88077596,3170.6,3170.5,0.72300684]
[1642482478984,3.88077596,3170.6,3170.5,1.02300684]
[1642482481428,2.69536372,3170.6,3170.5,1.02300684]
[1642482482433,2.69536372,3170.9,3170.5,1.02300684]
[1642482482633,1.23437553,3170.7,3170.5,1.02300684]
[1642482484081,2.69536372,3170.6,3170.5,1.02300684]
[1642482489728,1.23437553,3170.7,3170.5,1.02300684]
[1642482490128,0.00113685,3170.9,3170.6,1.25789869]
[1642482490328,0.00113685,3170.9,3170.7,0.447]
[1642482490528,0.00113685,3170.9,3170.7,0.747]
[1642482491176,0.00113685,3170.9,3170.8,1.35014317]
[1642482491378,1.2127616,3171.4,3171.0,0.78711315]
[1642482491579,1.2127616,3171.4,3171.0,1.08711315]
[1642482491780,0.00227369,3171.3,3171.1,0.447]
[1642482492079,0.00227369,3171.3,3171.1,0.747]
[1642482492284,0.126,3171.5,3171.1,2.05452894]
[1642482492285,0.00170527,3171.2,3171.1,2.05452894]
[1642482492490,0.126,3171.8,3171.2,5.2]
[1642482492684,4.04280353,3172.0,3171.9,1.51964404]
[1642482492883,4.04280353,3172.0,3171.9,0.747]
[1642482493084,4.04280353,3172.0,3171.9,1.047]
[1642482494085,1.28158636,3172.1,3171.9,1.047]
[1642482495926,0.126,3172.4,3172.0,1.282339]
[1642482496130,0.126,3172.4,3172.0,2.800639]
[1642482496329,0.00625266,3172.3,3172.0,5.7511142]
[1642482496528,0.00625266,3172.3,3172.1,1.6]
[1642482496728,0.00568423,3172.2,3172.1,1.6]
[1642482496927,0.00568423,3172.2,3172.1,2.047]
[1642482497532,0.21781423,3172.5,3172.1,3.62273]
[1642482497734,4.04280353,3172.7,3172.1,3.62273]
[1642482497934,0.00113685,3172.4,3172.1,3.62273]
[1642482498136,0.0123686,3173.8,3172.3,0.06437416]
[1642482498137,3.717,3173.2,3172.3,0.06437416]
[1642482498334,5.1987621,3173.2,3172.8,1.32091056]
[1642482498573,1.4817621,3173.2,3172.9,0.447]
[1642482498974,1.4817621,3173.2,3172.9,0.747]
[1642482499174,1.4817621,3173.2,3172.9,1.047]
[1642482499175,0.6940721,3173.2,3172.9,1.047]
[1642482499578,0.6940721,3173.2,3172.9,0.747]
[1642482499776,0.126,3173.1,3172.9,0.447]
[1642482500176,0.00341054,3173.0,3172.9,0.447]
[1642482500381,0.12941054,3173.0,3172.9,0.447]
[1642482500579,0.00341054,3173.0,3172.9,0.447]
[1642482500876,0.12941054,3173.0,3172.9,0.447]
[1642482501076,0.00341054,3173.0,3172.9,0.447]
[1642482501378,0.12941054,3173.0,3172.9,0.447]
[1642482501578,0.00341054,3173.0,3172.9,1.047]
[1642482503634,0.00341054,3173.0,3172.9,0.47260506]
[1642482503835,0.12941054,3173.0,3172.9,0.47260506]
[1642482504034,0.00341054,3173.0,3172.9,0.47260506]
[1642482504835,0.00341054,3173.0,3172.9,0.77260506]
[1642482505235,0.00341054,3173.0,3172.9,1.07260506]
[1642482505435,0.00341054,3173.0,3172.9,0.77260506]
[1642482505640,0.00341054,3173.0,3172.9,1.07260506]
[1642482505835,2.69668012,3173.0,3172.9,0.77260506]
[1642482506279,2.69668012,3173.0,3172.9,0.78027389]